bitfinex/quotes_SOLUSD_20251127
["timestamp","ask_amount","ask_price","bid_price","bid_amount"]
[1764207040370,7.72449997,142.36,142.34,0.1]
[1764207041290,7.02449997,142.36,142.34,0.81]
[1764207042394,7.02406552,142.37,142.34,0.81]
[1764207042900,7.72406552,142.37,142.34,0.81]
[1764207048407,0.7,142.36,142.34,0.1]
[1764207049003,0.7,142.36,142.34,0.81]
[1764207051152,7.02406552,142.37,142.34,0.81]
[1764207051400,0.7,142.37,142.34,0.81]
[1764207052301,4.1459049,142.35,142.34,0.1]
[1764207052597,5.13022804,142.37,142.34,0.1]
[1764207052774,0.7,142.37,142.34,0.81]
[1764207052971,48.13695811,142.38,142.34,0.1]
[1764207053171,7.7245089,142.36,142.34,0.1]
[1764207053400,24.03245939,142.38,142.34,0.81]
[1764207053701,23.33245939,142.38,142.34,0.81]
[1764207053885,0.7,142.37,142.34,0.81]
[1764207055088,7.72432078,142.37,142.34,0.81]
[1764207055289,7.72432078,142.37,142.34,0.1]
[1764207055499,0.7,142.36,142.34,0.1]
[1764207055917,0.7,142.36,142.34,0.81]
[1764207056096,7.02432078,142.37,142.34,0.1]
[1764207056097,11.17022568,142.37,142.34,0.1]
[1764207056411,7.72474993,142.36,142.34,0.1]
[1764207056905,0.7,142.35,142.34,0.1]
[1764207059210,7.72493853,142.35,142.34,0.1]
[1764207059922,11.87084343,142.35,142.34,0.1]
[1764207060694,10.38134055,142.35,142.34,0.1]
[1764207061096,7.72493853,142.35,142.34,0.1]
[1764207061414,10.38134055,142.35,142.34,0.1]
[1764207063522,7.72493853,142.35,142.34,0.1]
[1764207063823,10.38134055,142.35,142.34,0.1]
[1764207064596,13.76566369,142.35,142.34,0.1]
[1764207065704,30.07452769,142.35,142.34,0.1]
[1764207065903,38.88447261,142.35,142.34,1e-08]
[1764207068022,60.44415248,142.35,142.34,1e-08]
[1764207071922,49.97747164,142.35,142.34,1e-08]
[1764207074112,44.13528848,142.35,142.34,1e-08]
[1764207075912,49.97747164,142.35,142.34,1e-08]
[1764207076116,46.87747164,142.35,142.34,1e-08]
[1764207076320,49.97747164,142.35,142.34,1e-08]
[1764207077409,44.13528848,142.35,142.34,1e-08]
[1764207080334,49.97747164,142.35,142.34,1e-08]
[1764207081332,44.13528848,142.35,142.34,1e-08]
[1764207081630,49.97747164,142.35,142.34,1e-08]
[1764207082625,46.87747164,142.35,142.34,1e-08]
[1764207082934,9.68134055,142.35,142.34,0.71000001]
[1764207083135,19.21128547,142.35,142.34,1e-08]
[1764207083334,19.49560861,142.35,142.34,1e-08]
[1764207083639,16.308864,142.32,142.31,0.1]
[1764207083836,31.15953408,142.32,142.28,0.1]
[1764207084028,2.65640202,142.29,142.28,0.1]
[1764207084227,12.78430278,142.29,142.28,0.81]
[1764207086843,10.12790076,142.29,142.28,0.81]
[1764207087041,12.78430278,142.29,142.28,0.81]
[1764207088127,7.02790076,142.29,142.28,0.81]
[1764207088330,10.12790076,142.29,142.28,0.81]
[1764207090345,7.02756041,142.3,142.28,0.81]
[1764207090940,107.95640202,142.31,142.28,0.81]
[1764207090941,114.98349039,142.31,142.28,0.81]
[1764207091148,109.22708837,142.31,142.28,0.81]
[1764207094242,111.88349039,142.31,142.28,0.81]
[1764207095446,2.65640202,142.29,142.28,0.1]
[1764207096350,9.68430278,142.29,142.28,0.1]
[1764207100255,7.02752471,142.3,142.28,0.81]
[1764207100729,9.68392673,142.3,142.28,0.81]
[1764207101125,2.65640202,142.3,142.28,0.81]
[1764207101825,9.68389806,142.3,142.28,0.1]
[1764207102028,2.65640202,142.29,142.28,0.1]
[1764207102254,5.75640202,142.29,142.28,0.1]
[1764207103153,12.78430278,142.29,142.28,0.1]
[1764207103846,13.49430278,142.29,142.28,0.1]
[1764207104357,25.11880892,142.27,142.26,35.93162811]
[1764207104539,31.15953408,142.27,142.26,35.93162811]
[1764207104857,31.86953408,142.27,142.26,35.93162811]
[1764207105357,38.89842281,142.27,142.26,35.93162811]
[1764207105758,9.09426806,142.26,142.21,2.63976869]
[1764207105938,2.65640202,142.22,142.21,2.63976869]
[1764207106260,6.04072516,142.24,142.22,0.71]
[1764207107158,7.03086549,142.23,142.22,0.71]
[1764207107336,9.68726751,142.23,142.22,0.71]
[1764207111183,7.03086549,142.23,142.22,0.71]
[1764207111364,12.78686596,142.24,142.22,0.71]
[1764207113357,5.75640202,142.24,142.22,0.71]
[1764207114565,7.03086549,142.23,142.22,0.71]
[1764207114770,5.75640202,142.24,142.22,0.71]
[1764207115145,107.95640202,142.24,142.22,0.71]
[1764207115558,114.98686119,142.24,142.22,0.71]
[1764207117068,111.88686119,142.24,142.22,0.71]
[1764207117676,114.98686119,142.24,142.22,0.71]
[1764207118772,111.88686119,142.24,142.22,0.71]
[1764207118979,105.3,142.24,142.22,0.71]
[1764207119278,9.68863741,142.28,142.22,7.74120956]
[1764207119481,3.1,142.29,142.23,2.65640202]
[1764207119774,5.75640202,142.29,142.23,0.71]
[1764207119980,5.75640202,142.29,142.24,0.71]
[1764207120580,5.75640202,142.29,142.24,7.73995745]
[1764207120776,9.68432342,142.29,142.24,7.73995745]
[1764207120978,9.68432342,142.29,142.25,0.71]
[1764207121979,9.68432342,142.29,142.25,7.73962585]
[1764207122165,2.65640202,142.3,142.26,0.71]
[1764207122371,5.75640202,142.31,142.26,0.71]
[1764207122673,7.25315904,142.31,142.26,0.71]
[1764207123180,14.28013081,142.31,142.26,0.71]
[1764207123385,4.15315904,142.3,142.26,0.71]
[1764207124068,14.28013081,142.31,142.26,7.73917768]
[1764207124464,14.28013081,142.31,142.27,0.71]
[1764207124664,4.15315904,142.3,142.27,0.71]
[1764207125261,11.18061256,142.3,142.27,0.71]
[1764207125683,118.508864,142.34,142.27,11.89159627]
[1764207125982,125.53445176,142.34,142.28,4.15315904]
[1764207126163,102.2,142.34,142.29,4.15315904]
[1764207126363,102.2,142.34,142.29,0.71]
[1764207126562,113.378627,142.34,142.3,0.71]
[1764207126776,11.178627,142.34,142.3,0.71]
[1764207127182,3.1,142.35,142.3,0.71]
[1764207127485,4.15315904,142.34,142.3,7.73736749]
[1764207127886,4.15315904,142.34,142.31,0.71]
[1764207129186,11.17867081,142.34,142.31,0.71]
[1764207129762,4.15315904,142.34,142.31,0.71]
[1764207129987,11.1786684,142.34,142.31,0.71]
[1764207130782,4.15315904,142.34,142.31,0.71]
[1764207131474,11.17862154,142.34,142.31,0.71]
[1764207135100,4.15315904,142.33,142.27,7.02876919]
[1764207135301,4.15315904,142.33,142.3,0.71]
[1764207135503,7.7254625,142.34,142.3,0.71]
[1764207135504,4.15315904,142.32,142.3,0.71]
[1764207136984,11.17965083,142.32,142.3,0.71]
[1764207138908,4.15315904,142.32,142.3,0.71]
[1764207139101,14.2791146,142.33,142.3,0.71]
[1764207139787,10.12595556,142.33,142.3,0.71]
[1764207139990,14.2791146,142.33,142.3,0.71]
[1764207140194,14.9791146,142.33,142.3,0.71]
[1764207143503,14.2791146,142.33,142.3,0.71]
[1764207143717,14.9791146,142.33,142.3,0.71]
[1764207146485,3.1,142.33,142.3,0.71]
[1764207146703,4.15315904,142.35,142.3,0.71]
[1764207146906,4.15315904,142.32,142.29,0.71]
[1764207147303,4.85315904,142.32,142.29,0.71]
[1764207147696,4.15315904,142.32,142.29,0.71]
[1764207147900,11.17963857,142.32,142.29,0.71]
[1764207150812,11.17963857,142.32,142.27,7.02857717]
[1764207151129,11.87963857,142.32,142.29,0.71]
[1764207151492,11.17963857,142.32,142.29,0.71]
[1764207153416,11.87963857,142.32,142.29,0.71]
[1764207153618,4.15315904,142.31,142.29,0.71]
[1764207153815,4.15315904,142.3,142.28,0.71]
[1764207155318,11.18065635,142.3,142.28,0.71]
[1764207156270,7.02749731,142.3,142.28,0.71]
[1764207157027,3.1,142.33,142.28,0.71]
[1764207157219,11.17967592,142.32,142.28,0.71]
[1764207157527,11.87967592,142.32,142.28,0.71]
[1764207157918,14.97967592,142.32,142.28,0.71]
[1764207160811,4.15315904,142.36,142.29,4.15315904]
[1764207161012,6.52218316,142.38,142.31,4.15315904]
[1764207161013,4.15315904,142.37,142.31,4.15315904]
[1764207161337,0.68,142.38,142.31,4.15315904]
[1764207161338,4.83315904,142.38,142.31,4.15315904]
[1764207161634,4.15315904,142.37,142.32,0.66]
[1764207161804,29.41716334,142.37,142.32,0.66]
[1764207162126,11.17842847,142.35,142.32,0.66]
[1764207162328,4.15315904,142.33,142.3,0.66]
[1764207162631,4.15315904,142.33,142.29,24.20520946]
[1764207162632,4.15315904,142.33,142.29,0.66]
[1764207162801,4.15315904,142.31,142.27,18.21987918]
[1764207163002,4.83315904,142.3,142.27,0.66]
[1764207163208,4.15315904,142.28,142.25,0.66]
[1764207163624,4.83315904,142.28,142.25,0.66]
[1764207164227,11.18193168,142.28,142.25,0.66]
[1764207164432,4.83315904,142.27,142.23,0.66]
[1764207164610,4.83315904,142.27,142.24,0.66]
[1764207165716,4.83315904,142.27,142.21,12.0612716]
[1764207165916,4.15315904,142.26,142.22,0.66]
[1764207166741,11.18266409,142.26,142.22,0.66]
[1764207168931,11.86266409,142.26,142.22,0.66]
[1764207169431,4.83315904,142.25,142.22,0.66]
[1764207169950,4.15315904,142.25,142.22,0.66]
[1764207170131,11.86266409,142.26,142.22,0.66]
[1764207173950,7.02901601,142.27,142.22,0.66]
[1764207174153,11.86217505,142.27,142.22,0.66]
[1764207175140,4.15315904,142.26,142.22,0.66]
[1764207175345,4.83315904,142.26,142.22,0.66]
[1764207176365,11.862662,142.26,142.22,0.66]
[1764207178144,11.182662,142.26,142.22,0.66]
[1764207178457,0.68,142.25,142.22,0.66]
[1764207179646,11.182662,142.26,142.22,0.66]
[1764207179861,11.862662,142.26,142.22,0.66]
[1764207180834,4.15315904,142.24,142.21,1.92976869]
[1764207181055,4.15315904,142.23,142.21,1.92976869]
[1764207181469,4.83315904,142.23,142.21,1.92976869]
[1764207181763,4.83315904,142.24,142.21,1.92976869]
[1764207181959,4.83315904,142.24,142.21,2.58976869]
[1764207182642,7.03086549,142.23,142.21,2.58976869]
[1764207183033,7.03045039,142.24,142.22,0.66]
[1764207184161,109.22999523,142.25,142.22,0.66]
[1764207184335,7.02953188,142.26,142.22,0.66]
[1764207184945,10.36963105,142.27,142.22,7.69113576]
[1764207185465,10.36963105,142.27,142.23,0.66]
[1764207186867,2.66062147,142.27,142.23,7.69085751]
[1764207187039,9.68865997,142.29,142.23,7.69085751]
[1764207187245,9.68865997,142.29,142.24,3.32062147]
[1764207187246,10.1280385,142.29,142.24,3.32062147]
[1764207187450,7.02756444,142.3,142.25,3.1]
[1764207187653,6.42062147,142.32,142.26,0.66]
[1764207188464,7.02692692,142.31,142.26,0.66]
[1764207188673,9.68754839,142.31,142.26,7.68912273]
[1764207188868,10.34754839,142.31,142.26,7.68912273]
[1764207189066,9.68754839,142.31,142.27,0.66]
[1764207189573,10.34754839,142.31,142.27,0.66]
[1764207194558,10.12647514,142.32,142.27,7.68865534]
[1764207194764,12.78709661,142.32,142.27,7.68865534]
[1764207195067,9.68709661,142.32,142.28,0.7]
[1764207195242,2.66062147,142.32,142.28,0.7]
[1764207195443,131.29547002,142.33,142.28,0.7]
[1764207196171,131.95547002,142.33,142.28,0.7]
[1764207196373,10.34752973,142.32,142.28,0.7]
[1764207196663,2.66062147,142.31,142.28,0.7]
[1764207197744,7.68690826,142.32,142.28,0.7]
[1764207197974,2.66062147,142.31,142.28,0.7]
[1764207198575,9.68768523,142.31,142.28,0.7]
[1764207200775,7.02706376,142.31,142.28,0.7]
[1764207201354,9.68718721,142.32,142.28,0.7]
[1764207201554,102.2,142.33,142.28,7.7282281]
[1764207201774,102.2,142.33,142.29,0.7]
[1764207202750,102.2,142.33,142.3,7.02740688]
[1764207203180,102.2,142.33,142.31,0.7]
[1764207206779,102.2,142.33,142.28,23.33160825]
[1764207206991,102.86,142.33,142.28,23.33160825]
[1764207208562,16.308864,142.36,142.29,27.25827414]
[1764207208563,3.32062147,142.35,142.29,27.25827414]
[1764207208806,0.66,142.35,142.29,27.25827414]
[1764207209084,0.66,142.35,142.3,3.36062147]
[1764207209481,0.66,142.35,142.31,0.7]
[1764207209662,3.32062147,142.35,142.31,0.7]
[1764207209863,0.66,142.34,142.31,0.7]
[1764207210474,3.32062147,142.35,142.31,7.72660565]
[1764207210977,0.66,142.34,142.31,7.02660565]
[1764207211472,3.32062147,142.34,142.31,7.02660565]
[1764207211673,3.32062147,142.34,142.31,7.72660565]
[1764207212616,2.66062147,142.35,142.31,7.72660565]
[1764207212790,0.66,142.35,142.31,7.72660565]
[1764207214577,10.34581066,142.35,142.29,24.59765267]
[1764207214784,2.66062147,142.34,142.29,25.29765267]
[1764207214986,3.32062147,142.34,142.3,0.7]
[1764207215610,0.66,142.34,142.3,0.7]
[1764207216789,2.66062147,142.33,142.28,3.8]
[1764207216990,2.66062147,142.32,142.28,10.82827188]
[1764207217404,0.66,142.31,142.28,10.82827188]
[1764207218205,0.66,142.31,142.28,10.12827188]
[1764207218506,0.66,142.31,142.28,7.72827188]
[1764207218689,0.66,142.31,142.27,10.12875957]
[1764207218884,3.32062147,142.31,142.27,10.12875957]
[1764207219310,0.66,142.3,142.27,10.82875957]
[1764207219814,0.68,142.31,142.28,0.69]
[1764207220497,0.68,142.31,142.28,24.02688644]
[1764207229595,0.68,142.31,142.28,23.33688644]
[1764207230223,3.34062147,142.31,142.27,3.1]
[1764207230412,10.36774131,142.31,142.27,3.1]
[1764207230616,0.68,142.3,142.27,3.1]
[1764207230923,0.68,142.3,142.25,7.02981344]
[1764207231125,0.68,142.3,142.26,0.69]
[1764207231360,7.70711984,142.31,142.26,0.69]
[1764207231626,0.68,142.31,142.26,3.35062147]
[1764207231800,0.68,142.31,142.27,7.02888873]
[1764207232123,0.68,142.31,142.27,7.71888873]
[1764207232618,2.66062147,142.29,142.23,2.66062147]
[1764207232806,2.66062147,142.28,142.23,3.79]
[1764207233127,2.66062147,142.28,142.24,0.69]
[1764207233309,0.68,142.27,142.24,0.69]
[1764207233823,0.68,142.27,142.24,7.72003648]
[1764207234023,3.34062147,142.28,142.24,7.72003648]
[1764207234209,3.34062147,142.28,142.25,0.69]
[1764207235637,2.66062147,142.28,142.24,7.03003648]
[1764207235843,0.68,142.27,142.24,7.03003648]
[1764207236042,0.68,142.27,142.24,7.72003648]
[1764207236420,3.34062147,142.27,142.23,10.13076099]
[1764207236618,3.34062147,142.27,142.23,10.82076099]
[1764207236819,0.68,142.26,142.23,10.82076099]
[1764207237416,0.68,142.27,142.24,0.69]
[1764207237623,3.34062147,142.27,142.24,0.69]
[1764207240543,3.34062147,142.27,142.24,7.72035754]
[1764207241640,0.68,142.27,142.24,7.72035754]
[1764207242946,0.68,142.3,142.25,0.69]
[1764207243128,3.78,142.31,142.25,0.69]
[1764207243332,3.34062147,142.31,142.26,3.1]
[1764207243737,0.68,142.3,142.27,7.71888873]
[1764207244639,4.8333335,142.3,142.27,7.71888873]
[1764207245430,4.1533335,142.3,142.27,7.02888873]
[1764207245637,0.68,142.3,142.27,7.71888873]
[1764207245943,4.8333335,142.31,142.28,0.69]
[1764207246142,4.1533335,142.32,142.28,0.69]
[1764207246372,4.8333335,142.33,142.28,0.69]
[1764207246864,0.68,142.32,142.28,0.69]
[1764207247731,0.69,142.32,142.29,7.02790076]
[1764207248140,4.8433335,142.32,142.29,7.70790076]
[1764207248548,4.8433335,142.32,142.29,0.68]
[1764207249361,4.8433335,142.32,142.28,7.70830628]
[1764207249561,11.17929224,142.33,142.27,11.18222223]
[1764207249725,11.86929224,142.33,142.29,0.68]
[1764207250349,11.86929224,142.33,142.29,3.78]
[1764207250546,0.71,142.32,142.29,10.80777895]
[1764207250966,4.8633335,142.34,142.3,0.68]
[1764207251149,7.02487249,142.36,142.3,0.68]
[1764207251150,4.1533335,142.35,142.3,0.68]
[1764207251352,0.71,142.34,142.3,0.68]
[1764207251553,4.8633335,142.34,142.3,0.68]
[1764207252276,4.1533335,142.34,142.3,7.70705644]
[1764207252569,0.71,142.33,142.3,7.70705644]
[1764207252765,4.8633335,142.34,142.31,0.68]
[1764207252971,4.8633335,142.34,142.3,7.70705644]
[1764207253770,7.02357586,142.38,142.31,4.8333335]
[1764207253972,4.8633335,142.37,142.31,4.8333335]
[1764207254177,4.8633335,142.37,142.32,0.68]
[1764207254551,4.1533335,142.37,142.32,3.78]
[1764207254860,0.71,142.37,142.33,7.02592566]
[1764207255069,4.8633335,142.39,142.34,0.68]
[1764207255461,0.71,142.38,142.34,0.68]
[1764207256965,0.71,142.38,142.35,7.02493853]
[1764207257573,4.8633335,142.4,142.36,0.68]
[1764207257957,0.71,142.39,142.36,0.68]
[1764207258177,0.71,142.39,142.35,27.68728485]
[1764207258358,0.71,142.39,142.35,28.36728485]
[1764207258674,0.71,142.39,142.36,0.68]
[1764207258878,0.71,142.39,142.36,7.70397509]
[1764207259059,4.1533335,142.4,142.36,7.70397509]
[1764207259262,0.71,142.4,142.37,0.68]
[1764207262178,0.71,142.4,142.36,7.70397509]
[1764207262357,0.71,142.4,142.37,0.68]
[1764207263980,0.71,142.4,142.36,7.02397509]
[1764207264279,0.71,142.4,142.36,7.70397509]
[1764207264671,0.71,142.4,142.36,7.02397509]
[1764207264857,0.71,142.4,142.36,7.70397509]
[1764207267081,4.8633335,142.4,142.36,7.70397509]
[1764207267387,0.71,142.4,142.36,7.70397509]
[1764207268577,0.71,142.4,142.37,0.68]
[1764207268963,4.8633335,142.4,142.37,0.68]
[1764207270680,4.1533335,142.4,142.36,7.02397509]
[1764207270983,0.71,142.39,142.36,7.70397509]
[1764207271381,0.71,142.39,142.36,7.02397509]
[1764207271583,4.8633335,142.4,142.37,0.68]
[1764207272663,0.71,142.39,142.37,0.68]
[1764207274680,0.71,142.39,142.36,7.02397509]
[1764207274878,0.71,142.39,142.36,7.70397509]
[1764207279687,0.71,142.39,142.36,7.02397509]
[1764207279880,0.71,142.39,142.37,0.68]
[1764207280465,0.71,142.39,142.36,7.70397509]
[1764207280887,0.71,142.39,142.36,0.68]
[1764207281089,0.71,142.39,142.36,7.70435263]
[1764207281586,4.1533335,142.4,142.36,7.02435263]
[1764207281793,0.68,142.4,142.36,7.70435263]
[1764207281973,0.68,142.39,142.36,7.70435263]
[1764207282171,11.37533025,142.41,142.36,7.02435263]
[1764207282377,0.88,142.41,142.37,0.68]
[1764207282572,0.2,142.41,142.38,7.2533335]
[1764207282976,0.2,142.41,142.4,16.308864]
[1764207283194,0.2,142.41,142.4,29.27214242]
[1764207283497,0.2,142.41,142.4,34.30547592]
[1764207283989,0.2,142.41,142.4,41.61227097]
[1764207285273,0.2,142.41,142.4,37.45893747]
[1764207285478,0.2,142.41,142.4,36.97461433]
[1764207285994,0.2,142.41,142.4,7.70247191]
[1764207286290,0.2,142.41,142.4,26.43133591]
[1764207287068,0.2,142.41,142.4,10.12247191]
[1764207287904,0.2,142.41,142.4,10.80247191]
[1764207288203,0.2,142.41,142.4,10.12247191]
[1764207288904,0.2,142.41,142.4,7.02247191]
[1764207289104,0.2,142.41,142.4,10.12247191]
[1764207293686,0.88,142.41,142.38,3.1]
[1764207294099,0.68,142.4,142.38,3.1]
[1764207295700,0.68,142.4,142.38,10.12342024]
[1764207296703,0.68,142.4,142.38,3.1]
[1764207297504,0.68,142.4,142.38,10.1233584]
[1764207297882,0.2,142.41,142.38,10.1233584]
[1764207298096,0.2,142.41,142.39,0.68]
[1764207298401,0.2,142.41,142.39,4.8333335]
[1764207298606,0.2,142.41,142.4,0.68]
[1764207299801,0.2,142.41,142.4,28.16466941]
[1764207300181,0.2,142.41,142.4,24.01133591]
[1764207303201,0.88,142.41,142.36,26.37073738]
[1764207303497,12.05547624,142.41,142.37,3.1]
[1764207303706,0.68,142.4,142.37,3.1]
[1764207304001,4.8333335,142.4,142.37,3.1]
[1764207304388,0.68,142.39,142.37,3.1]
[1764207305706,2.65474317,142.38,142.33,16.308864]
[1764207305996,2.65474317,142.36,142.33,3.1]
[1764207306307,2.65474317,142.37,142.33,3.1]
[1764207306703,0.68,142.36,142.33,3.1]
[1764207307488,10.35930659,142.36,142.33,3.1]
[1764207308009,0.72,142.35,142.33,3.1]
[1764207311721,9.67829787,142.38,142.33,10.12592342]
[1764207312011,0.72,142.38,142.34,0.68]
[1764207312195,104.85474317,142.39,142.34,7.70523987]
[1764207312196,0.72,142.37,142.34,7.70523987]
[1764207312384,111.87781824,142.39,142.34,7.70523987]
[1764207312584,0.72,142.38,142.34,7.70523987]
[1764207312785,0.72,142.38,142.34,10.35998304]
[1764207313794,0.72,142.38,142.35,0.68]
[1764207313995,2.65474317,142.37,142.31,0.68]
[1764207314208,7.02395167,142.37,142.31,10.80658772]
[1764207314512,0.72,142.38,142.34,2.65474317]
[1764207314715,0.72,142.38,142.35,2.65474317]
[1764207315688,2.65474317,142.36,142.31,7.02658772]
[1764207316212,0.72,142.35,142.32,3.1]
[1764207320898,0.72,142.36,142.32,13.46100746]
[1764207321601,9.67884694,142.37,142.32,13.46100746]
[1764207321803,0.72,142.36,142.32,13.46100746]
[1764207322113,7.74446325,142.36,142.32,10.80626429]
[1764207322499,0.72,142.35,142.32,10.80626429]
[1764207326104,0.72,142.36,142.33,0.68]
[1764207326311,0.72,142.36,142.32,10.12626429]
[1764207326511,0.72,142.36,142.32,10.80626429]
[1764207327102,3.37474317,142.36,142.32,10.80626429]
[1764207327405,0.72,142.35,142.32,10.80626429]
[1764207332209,0.72,142.35,142.32,10.12626429]
[1764207332826,0.72,142.35,142.32,10.80626429]
[1764207333332,0.72,142.35,142.32,10.12626429]
[1764207334625,9.67895701,142.37,142.32,10.12626429]
[1764207334833,0.72,142.36,142.33,0.68]
[1764207335212,0.72,142.36,142.32,10.12626429]
[1764207335525,0.72,142.36,142.32,10.80626429]
[1764207341016,2.65474317,142.34,142.29,0.67]
[1764207341217,2.65474317,142.34,142.3,3.1]
[1764207341525,0.68,142.33,142.3,3.1]
[1764207342112,0.68,142.33,142.3,10.12729633]
[1764207342310,0.68,142.33,142.3,27.10616033]
[1764207342722,0.68,142.33,142.3,26.43616033]
[1764207347435,0.68,142.33,142.3,27.10616033]
[1764207349346,0.68,142.33,142.3,26.43616033]
[1764207350341,0.68,142.33,142.3,27.10616033]
[1764207352451,0.68,142.33,142.3,23.33616033]
[1764207352744,0.68,142.33,142.3,26.43616033]
[1764207353342,0.68,142.33,142.3,27.10616033]
[1764207354642,0.68,142.33,142.3,26.43616033]
[1764207354945,0.68,142.33,142.3,27.10616033]
[1764207355923,0.68,142.36,142.31,3.32474317]
[1764207356236,0.68,142.36,142.32,3.1]
[1764207356438,0.68,142.36,142.32,3.77]
[1764207356918,0.68,142.36,142.33,7.02592566]
[1764207357423,0.68,142.36,142.32,10.79633479]
[1764207359619,0.68,142.36,142.33,7.69554825]
[1764207363552,104.85474317,142.39,142.34,3.32474317]
[1764207363741,0.68,142.39,142.35,3.1]
[1764207363961,0.88,142.41,142.36,2.65474317]
[1764207364252,0.88,142.41,142.38,7.02345835]
[1764207364452,0.88,142.41,142.38,10.12345835]
[1764207364760,0.2,142.41,142.39,0.67]
[1764207365251,0.2,142.41,142.4,20.45511058]
[1764207365736,0.2,142.41,142.4,21.12511058]
[1764207366338,0.2,142.41,142.4,28.14758249]
[1764207366533,0.2,142.41,142.4,23.33133591]
[1764207366941,0.88,142.41,142.4,23.33133591]
[1764207367233,0.2,142.41,142.4,23.33133591]
[1764207367947,0.92,142.41,142.4,16.308864]
[1764207368528,0.2,142.41,142.4,23.33133591]
[1764207368733,0.2,142.41,142.4,24.00133591]
[1764207369032,0.2,142.41,142.4,23.33133591]
[1764207369251,0.92,142.41,142.4,16.308864]
[1764207369955,0.2,142.41,142.4,37.00752741]
[1764207370731,0.2,142.41,142.4,28.19758249]
[1764207373856,0.2,142.41,142.4,37.00752741]
[1764207374265,0.2,142.42,142.41,9.09426806]
[1764207374553,0.2,142.45,142.44,16.308864]
[1764207374764,0.88,142.45,142.44,16.308864]
[1764207375133,0.88,142.45,142.43,4.14624658]
[1764207375358,0.68,142.44,142.43,16.308864]
[1764207376544,0.68,142.44,142.41,10.12187269]
[1764207376744,0.68,142.44,142.41,14.26811927]
[1764207380665,0.68,142.44,142.41,14.98811927]
[1764207380849,0.68,142.44,142.42,4.14624658]
[1764207382767,0.68,142.44,142.42,11.16769952]
[1764207382960,0.68,142.44,142.42,7.02145294]
[1764207387152,0.2,142.45,142.42,11.16769952]
[1764207387345,0.2,142.45,142.44,4.14624658]
[1764207387846,0.2,142.45,142.44,4.86624658]
[1764207388046,0.2,142.45,142.44,24.27511058]
[1764207388445,0.2,142.45,142.44,31.29561043]
[1764207388847,0.2,142.45,142.44,30.57561043]
[1764207390473,0.2,142.45,142.44,26.42936385]
[1764207391346,0.2,142.45,142.44,31.29561043]
[1764207391542,0.2,142.45,142.44,30.57561043]
[1764207391757,0.2,142.45,142.44,31.29561043]
[1764207392849,0.2,142.45,142.44,30.57561043]
[1764207393761,0.2,142.45,142.44,40.38987849]
[1764207393962,0.2,142.45,142.44,43.20074247]
[1764207394463,0.2,142.45,142.44,118.20074247]
[1764207395270,0.2,142.45,142.44,43.20074247]
[1764207399558,0.2,142.45,142.44,118.90279245]
[1764207399752,0.2,142.45,142.44,43.90279245]
[1764207399958,0.2,142.45,142.44,43.20074247]
[1764207401178,0.2,142.45,142.44,118.20074247]
[1764207402870,0.2,142.45,142.44,117.48074247]
[1764207403068,0.2,142.45,142.44,118.16074247]
[1764207403583,0.2,142.45,142.44,43.16074247]
[1764207407378,0.2,142.45,142.44,118.16074247]
[1764207409994,0.2,142.45,142.44,42.87641933]
[1764207410193,0.2,142.45,142.44,43.16074247]
[1764207411096,0.2,142.45,142.44,118.16074247]
[1764207413691,0.2,142.45,142.44,115.34987849]
[1764207417874,1e-08,142.45,142.44,119.49612507]
[1764207418381,1e-08,142.45,142.44,122.30679154]
[1764207418772,0.2,142.49,142.48,25.11880892]